Workbook

Sheet 표지
A2: 2021년도
A3: 결산서
A6: 학교법인동화학원

Sheet 결산총괄표
A1: 법인회계 결산 총괄표
A3: 1. 세입 | F3: (단위 : 원)
A4: 과별 | B4: 결산액 | C4: 구성비(%) | D4: 예산액 | E4: 집행잔액 | F4: 비고
A5: 1. 재산수입 | B5: 189,713,043 | C5: =SUM(B5/$B$11)*100 -> 64.17 | D5: 189,714,000 | E5: =SUM(D5-B5) -> 957
A6: 2. 과년도수입 | B6: 0 | C6: 0 | D6: 0 | E6: =SUM(D6-B6) -> 0
A7: 3. 이월금 | B7: 104,731,338 | C7: 35.42 | D7: 104,731,000 | E7: -338
A8: 4. 기부원조금 | B8: 0 | C8: 0 | D8: 0 | E8: 0
A9: 5. 고정부채입금 | B9: 0 | C9: 0 | D9: 0 | E9: 0
A10: 6. 잡수입 | B10: 1,204,605 | C10: 0.41 | D10: 1,203,000 | E10: -1,605
A11: 세입합계 | B11: =SUM(B5:B10) -> 295,648,986 | C11: =SUM(C5:C10) -> 100.00 | D11: =SUM(D5:D10) -> 295,648,000 | E11: -986
A14: 2. 세출 | F14: (단위 : 원)
A15: 과별 | B15: 결산액 | C15: 구성비(%) | D15: 예산액 | E15: 집행잔액 | F15: 비고
A16: 1.이사회비 | B16: 1,600,000 | C16: =SUM(B16/$B$22)*100 -> 0.92 | D16: 1,600,000 | E16: =SUM(D16-B16) -> 0
A17: 2.사무비 | B17: 4,605,230 | C17: 2.65 | D17: 5,056,000 | E17: 450,770
A18: 3.재산조성비 | B18: 37,959,130 | C18: 21.86 | D18: 38,000,000 | E18: 40,870
A19: 4.전출금 | B19: 126,591,410 | C19: 72.91 | D19: 148,132,000 | E19: 21,540,590
A20: 5.잡지출 | B20: 2,860,000 | C20: 1.65 | D20: 2,860,000 | E20: 0
A21: 6.예비비 | B21: 0 | C21: 0 | D21: 100,000,000 | E21: 100,000,000
A22: 세출합계 | B22: =SUM(B16:B21) -> 173,615,770 | C22: =SUM(C16:C21) -> 100.00 | D22: =SUM(D16:D21) -> 295,648,000 | E22: =SUM(E16:E21) -> 122,032,230

Sheet 세입결산서
A1: 세입결산서
A2: (단위 : 원)
B3: 과 목 | E3: 결산액 | F3: 예산현액 | G3: 집행잔액 | H3: 산 출 기 초(단위:원) | J3: 과목해소 및 유의사항
B4: 관 | C4: 항 | D4: 목
B5: 1.재산수입 | E5: =E6 -> 189,713,043 | F5: =F6 -> 189,714,000 | G5: =G6 -> 957
C6: 1.기본재산수입 | E6: =E7 -> 189,713,043 | F6: =F7 -> 189,714,000 | G6: =F6-E6 -> 957
D7: 1.기본재산수입 | E7: 189,713,043 | F7: 189,714,000 | G7: =F7-E7 -> 957 | H7: 토지임대료 5,000,000원*1 + 3,300,000원*1 + 1,000,000원*1 = | I7: 9,300,000 | J7: 토지(대지,전,답,임야 및 잡종지)의 임대수입
H8: 건물임대수입 7,315,000*5 + 10,450,000*13 = | I8: 179,740,000 | J8: 건물임대수입
H9: 정기예금이자 이자552,373 - 공제85,060 = | I9: 467,313 | J9: 정기예금이자는 2016년도 선급법인세, 2015년도에 납부한 법인세환급금을 구분하여 기재하고 2014년도 선급법인세 납부 증빙서 (금융기관별 금융소득원천징수명세서)를 반드시 첨부
H10: 법인세환급금 | I10: 205,730
B13: 5.이월금 | E13: =E14 -> 104,731,338 | F13: =F14 -> 104,731,000 | G13: =F13-E13 -> △338
C14: 1.전년도이월금 | E14: =E15+E16 -> 104,731,338 | F14: =F15+F16 -> 104,731,000 | G14: =F14-E14 -> △338
D15: 1.전년도잉여금 | E15: 4,731,338 | F15: 4,731,000 | G15: =F15-E15 -> △338 | H15: 전년도 불용액 중 이월사업비, 임대보증금미환급금을 제외한 금액 | I15: 4,731,338
D16: 3.임대보증금미환급금 | E16: 100,000,000 | F16: 100,000,000 | G16: =E16-F16 -> 0 | H16: 전년도 임대보증금 미환급에 따른 이월금 | I16: 100,000,000
B17: 6.기부원조금 | E17: =E18 -> 0 | F17: =F18 -> 0 | G17: 0
C18: 1.기부원조금 | E18: =E19 -> 0 | F18: =F19 -> 0 | G18: 0
D19: 1.기부원조금 | E19: 0 | F19: 0 | G19: 0 | J19: 기부금은 집행용도를 구체적으로 작성하고, 세출예산서에 구체적으로 표기
B20: 7.차입금 | E20: =+E21 -> 0 | F20: =+F21 -> 0 | G20: 0
C21: 1.차입금 | E21: =E22 -> 0 | F21: =F22 -> 0 | G21: 0
D22: 1.임대보증금수입 | E22: 0 | F22: 0 | G22: 0 | J22: ※ 당해년도에 임대계약 만료로 임차인이 변경될 경우 임대보증금의 세입세출이 있으면 반드시 법인회계계좌로 세입세출처리하고, 예산서에도 세입세출을 표기하여야 함.
B23: 8.잡수입 | E23: =E24+E27 -> 1,204,605 | F23: =F24+F27 -> 1,203,000 | G23: =F23-E23 -> △1,605
C24: 1.잡수입 | E24: =E25 -> 1,152,890 | F24: =F25 -> 1,152,000 | G24: =F24-E24 -> △890
D25: 1.잡수입 | E25: 1,152,890 | F25: 1,152,000 | G25: =F25-E25 -> △890 | H25: 교비회계 법인세 환급금 | I25: 1,152,890
C27: 2.예금이자 | E27: =E28 -> 51,715 | F27: =F28 -> 51,000 | G27: =F27-E27 -> △715
D28: 1.예금이자 | E28: 51,715 | F28: 51,000 | G28: =F28-E28 -> △715 | H28: 법인회계 보통예금이자 | I28: 49,735
H29: 법인회계 법인세환급금 | I29: 1,980
B30: 세 입 합 계 | E30: =E5+E13+E17+E20+E23 -> 295,648,986 | F30: =F5+F13+F17+F20+F23 -> 295,648,000 | G30: =F30-E30 -> △986

Sheet 세출결산서
A1: 세출결산서
A2: (단위 : 원)
B3: 과 목 | E3: 결산액 | F3: 예산현액 | G3: 집행잔액 | H3: 산 출 기 초(단위:원) | J3: 과목해소 및 유의사항
B4: 관 | C4: 항 | D4: 목
B5: 1.이사회비 | E5: =E6 -> 1,600,000 | F5: =F6 -> 1,600,000 | G5: =E5-F5 -> 0
C6: 1.이사회비 | E6: =E7 -> 1,600,000 | F6: =F7 -> 1,600,000 | G6: 0
D7: 1.이사회운영비 | E7: 1,600,000 | F7: 1,600,000 | G7: 0 | H7: 100,000원*8명*2회 = | I7: 1,600,000 | J7: 임원수당 : 위원회참석 수당 등 실비변상
J8: 임원수당 : 위원회참석 수당 등 실비변상
B9: 2.사무비 | E9: =+E10 -> 4,605,230 | F9: =+F10 -> 5,056,000 | G9: =F9-E9 -> 450,770
C10: 2.수용비 | E10: =E11 -> 4,605,230 | F10: =F11 -> 5,056,000 | G10: 450,770
D11: 1.법인운영비 | E11: 4,605,230 | F11: 5,056,000 | G11: 450,770 | H11: 법인 세무비용 3,300,000*1년 = | I11: 3,300,000 | J11: 공공요금 : 우편․전신․전화․전기․수도요금 등
H12: 법인차량 유지비 | I12: 1,202,030 | J12: 연료비 : 난방용 연료와 그 부대경비(공고 및 운반비를 포함한다)
H13: 주유비 | I13: 316,070
H14: 검사비 | I14: 167,000
H15: 보험료 | I15: 718,960
H16: 경조사비 90,000*1회= | I16: 90,000 | J16: 차량비 : 차량의 세금․수수료․수리․유류․부속품대, 보험료
H17: 인증서 갱신 4,400*3회= | I17: 13,200
B19: 3.재산조성비 | E19: =E20+E23 -> 37,959,130 | F19: =F20+F23 -> 38,000,000 | G19: =F19-E19 -> 40,870
C20: 1.시설비 | E20: =+E21+E22 -> 0 | F20: =+F21+F22 -> 0 | G20: =E20-F20 -> 0
D21: 2.시설비 | E21: 0 | F21: 0 | G21: 0 | J21: 건물의 신, 증축비 및 부대경비(공고료 포함) ※ 비품이나 고정시설물도 건축공사와 일괄 시공시는 시설비에 편성
D22: 3.적립금 | E22: 0 | F22: 0 | G22: 0 | J22: 노후교실의 개축,증축 등을 위한 적립금을 집행할 경우 ※ 적립금은 관할청의 신고수리를 득한 경우 가능
C23: 2.재산관리비 | E23: =E24+E25 -> 37,959,130 | F23: =F24+F25 -> 38,000,000 | G23: =F23-E23 -> 40,870
D24: 1.재산유지비 | E24: 0 | F24: 0 | G24: 0 | J24: 수익용재산(건물) 유지관리, 보수비 등
D25: 2.공과보험료 | E25: 37,959,130 | F25: 38,000,000 | G25: 40,870 | H25: 토지 재산세 | I25: 27,130,120 | J25: 화재보험료 및 기타 공과금, 각종 세금
H26: 건물 재산세 | I26: 262,000
H27: 건물 화재보험료 | I27: 184,500
H28: 부가가치세 4회 | I28: 10,359,990 | J28: ※ 법인세(주민세), 국공유지 사용료, 각종부담금, 적십자회비 등
H29: 지역자원시설세 5회 | I29: 22,520 | J29: ※ 법인세(주민세), 국공유지 사용료, 각종부담금, 적십자회비 등
B31: 4.전출금 | E31: =E32 -> 126,591,410 | F31: =F32 -> 148,132,000 | G31: =F31-E31 -> 21,540,590
C32: 1.전출금 | E32: =E33+E35 -> 126,591,410 | F32: =F33+F35 -> 148,132,000 | G32: =F32-E32 -> 21,540,590 | J32: 법정부담금 전출금, 법인지정사업비 전출금
D33: 1.고등학교법인전출금 | E33: 89,376,040 | F33: 103,994,000 | G33: =F33-E33 -> 14,617,960 | H33: 건강보험부담금 | I33: 88,381,810 | J33: ※ 반드시 학교급별로 구분하여 작성하고, 세부항목별로 작성
H34: 법인세환급금 | I34: 994,230
D35: 2.중학교법인전출금 | E35: 37,215,370 | F35: 44,138,000 | G35: =F35-E35 -> 6,922,630 | H35: 건강보험부담금 | I35: 37,000,000
H36: 법인세환급금 | I36: 215,370
B37: 9.잡지출 | E37: =E38 -> 2,860,000 | F37: =F38 -> 2,860,000 | G37: =G38 -> 0
C38: 1.제지출 | E38: =SUM(E39:E39) -> 2,860,000 | F38: =SUM(F39:F39) -> 2,860,000 | G38: =E38-F38 -> 0
D39: 4.기타제지출 | E39: 2,860,000 | F39: 2,860,000 | G39: 0 | H39: 사립중고등학교법인협의회비 1회 | I39: 2,860,000 | J39: 법인협의회
B40: 10.예비비 | E40: =E41 -> 0 | F40: =F41 -> 100,000,000 | G40: =E40-F40 -> △100,000,000
C41: 1.예비비 | E41: =E42 -> 0 | F41: =F42 -> 100,000,000 | G41: =E41-F41 -> △100,000,000
D42: 1.임대보증금미환급금 | E42: 0 | F42: 100,000,000 | G42: =E42-F42 -> △100,000,000 | H42: 임대보증금 미환급금 | I42: 100,000,000
B43: 세 출 합 계 | E43: =E5+E9+E19+E31+E37+E40 -> 173,615,770 | F43: =F5+F9+F19+F31+F37+F40 -> 295,648,000 | G43: =F43-E43 -> 122,032,230
B44: 결 산 잔 액 | E44: =SUM(세입결산서!E30-세출결산서!E43) -> 122,033,216

Sheet 기구 및 정현원(동화고)
A1: 【서식 7】
A2: 기구 및 정·현원 일람표
A3: [ 작성기준 : 예산 - 3.1. 결산 - 2.28. ]
A5: 1. 일반 현황
A7: 법인설립 인 가 년 월 일 | B7: 이사장 인적사항 | P7: 전화번호
B8: 성명 (한자) | F8: 생년월일 | H8: 학력 | J8: 경럭 | P8: 법인 사무실 | R8: 이사장 자택
A9: 1950.6.5 | B9: 유 동 욱 (劉 東 旭) | F9: 1953.4.15 | H9: 중앙대학교 | J9: 유피부과의원장
A10: ※ 작성요령 : 관외법인도 작성하며 지역교육청에서는 법인별 제출 할 것.
A12: 2. 법인 정. 현원 현황 | S12: (단위 : 명)
A13: 구분 | B13: 사 무 직 | Q13: 기능직 | S13: 계
B14: 4급 | F14: 5급 | I14: 6급 | L14: 8급 | O14: 소계
A15: 정원 | B15: 1 | F15: 1 | I15: 0 | L15: 1 | O15: =SUM(B15:N15) -> 3 | Q15: 0 | S15: =O15+Q15 -> 3
A16: 현원 | B16: 0 | F16: 0 | I16: 0 | L16: 0 | O16: =SUM(B16:N16) -> 0 | Q16: 0 | S16: =O16+Q16 -> 0
A17: 증감 | B17: 0 | F17: 0 | I17: 0 | L17: 0 | O17: =O15-O16 -> 3 | Q17: =Q15-Q16 -> 0 | S17: =S15-S16 -> 3
A18: ※ 작성요령 : 관내법인만 작성.
A20: 3. 학교 교직원 정.현원 현황 | S20: (단위 : 명)
A21: 구분 | B21: 정규교원 | G21: 기간제교원 | J21: 일반직 | S21: 합계
J22: 행정 | M22: 관리운영 | P22: 기술
B23: 교장 | C23: 교감 | D23: 보직교사 | E23: 교사 | F23: 소계 | G23: 결원 보충 | H23: 기타 | I23: 소계 | J23: 5급 | K23: 6급 | L23: 7급 | M23: 8급 | N23: 9급 | P23: 8급 | Q23: 9급 | R23: 소계
A24: 정원 | B24: 1 | C24: 2 | D24: 12 | E24: 78 | F24: =SUM(B24:E24) -> 93 | G24: 0 | H24: 0 | I24: =SUM(G24:H24) -> 0 | J24: 1 | K24: 1 | L24: 1 | M24: 1 | N24: 1 | P24: 1 | Q24: 1 | R24: =SUM(J24:Q24) -> 7 | S24: =F24+O24+R24+I24 -> 100
A25: 현원 | B25: 1 | C25: 1 | D25: 12 | E25: 60 | F25: =SUM(B25:E25) -> 74 | G25: 19 | I25: =SUM(G25:H25) -> 19 | J25: 1 | K25: 0 | L25: 1 | M25: 0 | N25: 2 | P25: 2 | Q25: 0 | R25: =SUM(J25:Q25) -> 6 | S25: =F25+O25+R25+I25 -> 99
A26: 증감 | B26: =B24-B25 -> 0 | E26: 18 | F26: 19 | G26: -19 | H26: 0 | I26: -19 | J26: 0 | K26: 1 | L26: 0 | M26: 1 | N26: -1 | O26: 0 | P26: -1 | Q26: 1 | R26: 1 | S26: 1
A27: ※ 정원은 관할청에서 인정한 인원을 기재하고 현원은 현재 근무중인자(휴직자 포함, 기간제교사와 시간강사는 제외)를 작성한다.
A29: 4. 교육공무직원 현황 | S29: (단위 : 명)
A30: 구분 | B30: 교육공무직원
B31: 행정실무사 | F31: 영양사 | H31: 조리사 | J31: 조리실무사 | S31: 계
A32: 정원 | B32: 4 | F32: 0 | H32: 1 | J32: 16 | K32: 0 | L32: 0 | N32: 0 | P32: 0 | R32: 0 | S32: =SUM(B32:R32) -> 21
A33: 현원 | B33: 4 | F33: 0 | H33: 1 | J33: 16 | K33: 0 | L33: 0 | N33: 0 | P33: 0 | R33: 0 | S33: =SUM(B33:R33) -> 21
A34: 증감 | B34: 0 | F34: 0 | H34: 0 | J34: =J32-J33 -> 0 | K34: 0 | L34: =M32-M33 -> 0 | N34: 0 | P34: 0 | R34: =R32-R33 -> 0 | S34: =S32-S33 -> 0
A35: ※ 직종에 따라 변경 작성

Sheet 기구 및 정현원(동화중)
A1: 【서식 7】
A2: 기구 및 정·현원 일람표
A3: [ 작성기준 : 예산 - 3.1. 결산 - 2.28. ]
A5: 1. 일반 현황
A7: 법인설립 인 가 년 월 일 | B7: 설립자 (한자) | D7: 이사장 인적사항 | P7: 전화번호
D8: 성명 (한자) | F8: 생년월일 | H8: 학력 | J8: 경럭 | P8: 법인 사무실 | R8: 이사장댁
A9: 1950.6.5 | B9: 유 경 화 (劉 景 華) | D9: 유 동 욱 (劉 東 旭) | F9: 1953.4.15 | H9: 중앙대학교 | J9: 유피부과의원장
A10: ※ 작성요령 : 관외법인도 작성하며 지역교육청에서는 법인별 제출 할 것.
A12: 2. 법인 정. 현원 현황 | S12: (단위 : 명)
A13: 구분 | B13: 사무직 | Q13: 기능직 | S13: 계
B14: 4급 | D14: 5급 | F14: 6급 | I14: 8급 | L14: 9급 | O14: 소계
A15: 정원 | B15: 1 | D15: 1 | F15: 0 | I15: 1 | L15: 0 | O15: =SUM(B15:N15) -> 3 | Q15: 0 | S15: =O15+Q15 -> 3
A16: 현원 | B16: 0 | D16: 0 | F16: 0 | I16: 0 | L16: 0 | O16: =SUM(B16:N16) -> 0 | Q16: 0 | S16: =O16+Q16 -> 0
A17: 증감 | B17: =B15-B16 -> 1 | D17: =D15-D16 -> 1 | F17: 1 | I17: 1 | L17: 0 | O17: =O15-O16 -> 3 | Q17: =Q15-Q16 -> 0 | S17: =S15-S16 -> 3
A18: ※ 작성요령 : 관내법인만 작성.
A20: 3. 학교 교직원 정.현원 현황 | S20: (단위 : 명)
A21: 구분 | B21: 정규교원 | G21: 기간제교원 | J21: 일반직 | S21: 합계
J22: 행정 | M22: 관리운영 | P22: 기술
B23: 교장 | C23: 교감 | D23: 보직 교사 | E23: 교사 | F23: 소계 | G23: 결원 보충 | H23: 기타 | I23: 소계 | J23: 5급 | K23: 6급 | L23: 7급 | M23: 8급 | N23: 9급 | P23: 8등급 | Q23: 9등급 | R23: 소계
A24: 정원 | B24: 1 | C24: 1 | D24: 10 | E24: 27 | F24: =SUM(B24:E24) -> 39 | G24: 0 | H24: 0 | I24: =SUM(G24:H24) -> 0 | J24: 0 | K24: 1 | L24: 1 | M24: 0 | N24: 1 | P24: 1 | Q24: 1 | R24: =SUM(J24:Q24) -> 5 | S24: =F24+O24+R24+I24 -> 44
A25: 현원 | B25: 1 | C25: 1 | D25: 10 | E25: 15 | F25: =SUM(B25:E25) -> 27 | G25: 12 | H25: 0 | I25: =SUM(G25:H25) -> 12 | J25: 0 | K25: 1 | L25: 0 | M25: 1 | N25: 0 | P25: 0 | Q25: 2 | R25: =SUM(J25:Q25) -> 4 | S25: =F25+O25+R25+I25 -> 43
A26: 증감 | B26: =B24-B25 -> 0 | C26: =C24-C25 -> 0 | D26: 0 | E26: 12 | F26: 12 | G26: -12 | H26: 0 | I26: -12 | J26: 0 | K26: 0 | L26: 1 | M26: -1 | N26: 1 | O26: 0 | P26: 1 | Q26: -1 | R26: 1 | S26: 1
A27: ※ 정원은 관할청에서 인정한 인원을 기재하고 현원은 현재 근무중인자(휴직자 포함, 기간제교사와 시간강사는 제외)를 작성한다.
A29: 4. 교육공무직원 현황 | S29: (단위 : 명)
A30: 구분 | B30: 비정규직
B31: 행정실무사 | D31: 영양사 | F31: 사서 | S31: 계
A32: 정원 | B32: 3 | D32: 0 | F32: 0 | H32: 0 | J32: 0 | K32: 0 | L32: 0 | N32: 0 | P32: 0 | R32: 0 | S32: =SUM(B32:R32) -> 3
A33: 현원 | B33: 3 | D33: 0 | F33: 0 | H33: 0 | J33: 0 | K33: 0 | L33: 0 | N33: 0 | P33: 0 | R33: 0 | S33: =SUM(B33:R33) -> 3
A34: 증감 | B34: 0 | D34: 0 | F34: 0 | H34: 0 | J34: =J32-J33 -> 0 | K34: 0 | L34: =M32-M33 -> 0 | N34: 0 | P34: 0 | R34: =R32-R33 -> 0 | S34: =S32-S33 -> 0
A35: ※ 직종에 따라 변경 작성

Sheet 성질별 조서
A1: 법인회계 결산 성질별조서
E4: (단위:원)
A5: 구분 | C5: 예산 성질별 내역
A6: 관명 | B6: 과목명 | C6: 결산액 | D6: 관내구성비 | E6: 전체구성비
A7: 이사회비 | B7: 이사회운영비 | C7: 1,600,000 | D7: 100.0 | E7: =(C7/$C$23)*100 -> 0.9
B8: 소계 | C8: =SUM(C7) -> 1,600,000 | D8: 100.0 | E8: 0.9
A9: 사무비 | B9: 법인 운영비 | C9: 4,605,230 | D9: 100.0 | E9: 2.7
B10: 소계 | C10: =SUM(C9) -> 4,605,230 | D10: 100.0 | E10: 2.7
A11: 재산조성비 | B11: 시설비 | C11: 0 | D11: =SUM(C11/$C$14)*100 -> 0.0 | E11: 0.0
B12: 재산유지비 | C12: 0 | D12: =SUM(C12/$C$14)*100 -> 0.0 | E12: 0.0
B13: 공과보험료 | C13: 37,959,130 | D13: =SUM(C13/$C$14)*100 -> 100.0 | E13: 21.9
B14: 소계 | C14: =SUM(C11:C13) -> 37,959,130 | D14: =SUM(C14/$C$14)*100 -> 100.0 | E14: 21.9
A15: 전출금 | B15: 고등학교법인전출금 | C15: 89,376,040 | D15: =SUM(C15/$C$18)*100 -> 70.6 | E15: 51.5
B16: 중학교법인전출금 | C16: 37,215,370 | D16: =SUM(C16/$C$18)*100 -> 29.4 | E16: 21.4
C17: 0 | D17: =SUM(C17/$C$18)*100 -> 0.0 | E17: 0.0
B18: 소계 | C18: =SUM(C15:C17) -> 126,591,410 | D18: =SUM(C18/$C$18)*100 -> 100.0 | E18: 72.9
A19: 잡지출 | B19: 기타 잡지출 | C19: 2,860,000 | D19: 100.0 | E19: 1.6
B20: 소계 | C20: =SUM(C19) -> 2,860,000 | D20: 100.0 | E20: 1.6
A21: 예비비 | B21: 예비비 | C21: 0 | D21: 100.0 | E21: 0.0
B22: 소계 | C22: =SUM(C21) -> 0 | D22: 100.0 | E22: 0.0
A23: 총계 | C23: =SUM(C8,C10,C14,C18,C20,C22) -> 173,615,770 | D23: 100.0 | E23: 100.0

Sheet 법인회계 결산조서
A1: 법인회계 결산조서
A3: ㅇ 세입결산조서 | R3: (단위 : 원)
A4: 과 목 | D4: 예산액 (A) | E4: 이월등 증감액(B) | I4: 예산현액 (C=A+B) | K4: 징수결정액 (D) | M4: 수납액 (E) | O4: 불 납 결손액 (F) | Q4: 미수납액 (G=D-E-F)
A5: 관 | B5: 항 | C5: 목 | E5: 명시이월 | F5: 사고이월 | G5: 계속비이월 | H5: 계
A6: 1. 재산수입 | B6: 1. 기본재산수입 | C6: 1. 대지료 | D6: 189,714,000 | E6: 0 | F6: 0 | G6: 0 | H6: 0 | I6: =SUM(D6,H6) -> 189,714,000 | K6: 189,713,043 | M6: =SUM(K6) -> 189,713,043 | O6: 0 | Q6: =K6-M6-O6 -> 0
C7: 2. 기타수입 | D7: 0 | E7: 0 | F7: 0 | G7: 0 | H7: 0 | I7: 0 | K7: 0 | M7: 0 | O7: 0 | Q7: =K7-M7-O7 -> 0
C8: 3. 수험료 | D8: 0 | E8: 0 | F8: 0 | G8: 0 | H8: 0 | I8: 0 | K8: 0 | M8: 0 | O8: 0 | Q8: 0
B9: 2.재산매각대 | C9: 1.재산매각대 | D9: 0 | E9: 0 | F9: 0 | G9: 0 | H9: 0 | I9: 0 | K9: 0 | M9: 0 | O9: 0 | Q9: 0
A10: 2. 과년도 수입 | B10: 1. 과년도 수입 | C10: 1.과년도수입 | D10: 0 | E10: 0 | F10: 0 | G10: 0 | H10: 0 | I10: 0 | K10: 0 | M10: 0 | O10: 0 | Q10: 0
A11: 3. 이월금 | B11: 1. 전년도 잉여금 | C11: 1.전년도 잉여금 | D11: 4,731,000 | E11: 0 | F11: 0 | G11: 0 | H11: 0 | I11: 4,731,000 | K11: 4,731,338 | M11: =SUM(K11) -> 4,731,338 | O11: 0 | Q11: 0
C12: 2.임대보증금미환급금 | D12: 100,000,000 | I12: 100,000,000 | K12: =SUM(D12) -> 100,000,000 | M12: =SUM(K12) -> 100,000,000 | O12: 0 | Q12: =K12-M12-O12 -> 0
A13: 4. 기부원조금 | B13: 1. 기부원조금 | C13: 1. 기부원조금 | D13: 0 | E13: 0 | F13: 0 | G13: 0 | H13: 0 | I13: 0 | K13: =SUM(D13) -> 0 | M13: =SUM(K13) -> 0 | O13: 0 | Q13: 0
A14: 5. 고정부채입금 | B14: 1. 기타고정부채 | C14: 1.임대보증금 | D14: 0 | E14: 0 | F14: 0 | G14: 0 | H14: 0 | I14: 0 | K14: =SUM(D14) -> 0 | M14: 0 | O14: 0 | Q14: 0
A15: 6. 잡수입 | B15: 1. 잡수입 | C15: 1.잡수입 | D15: 1,152,000 | E15: 0 | F15: 0 | G15: 0 | H15: 0 | I15: 1,152,000 | K15: 1,152,890 | M15: =SUM(K15) -> 1,152,890 | O15: 0 | Q15: 0
C16: 2. 변상금 | D16: 0 | E16: 0 | F16: 0 | G16: 0 | H16: 0 | I16: 0 | K16: =SUM(D16) -> 0 | M16: 0 | O16: 0 | Q16: 0
C17: 3. 위약금 | D17: 0 | E17: 0 | F17: 0 | G17: 0 | H17: 0 | I17: 0 | K17: =SUM(D17) -> 0 | M17: 0 | O17: 0 | Q17: 0
B18: 2. 예금이자 | C18: 1.예금이자 | D18: 51,000 | E18: 0 | F18: 0 | G18: 0 | H18: 0 | I18: 51,000 | K18: 51,715 | M18: =SUM(K18) -> 51,715 | O18: 0 | Q18: 0
B19: 3. 물품매각대 | C19: 1. 불용물품매각대 | D19: 0 | E19: 0 | F19: 0 | G19: 0 | H19: 0 | I19: 0 | K19: =SUM(D19) -> 0 | M19: 0 | O19: 0 | Q19: 0
A20: 세 입 합 계 | D20: =SUM(D6:D19) -> 295,648,000 | E20: =SUM(E6:E19) -> 0 | F20: =SUM(F6:F19) -> 0 | G20: =SUM(G6:G19) -> 0 | H20: =SUM(H6:H19) -> 0 | I20: =SUM(I6:J19) -> 295,648,000 | K20: =SUM(K6:L19) -> 295,648,986 | M20: =SUM(M6:N19) -> 295,648,986 | O20: =SUM(O6:O19) -> 0 | Q20: =SUM(Q6:Q19) -> 0
A32: ㅇ 세출결산조서 | R32: (단위 : 원)
A33: 과 목 | D33: 예산 (A) | E33: 예산결정후 증감액(B) | L33: 예산현액 (C=A+B) | M33: 지출액 (D) | N33: 다음년도 이월액(E) | R33: 불용액 (F=C-D-E)
A34: 관 | B34: 항 | C34: 목 | E34: 명시이월 | F34: 사고이월 | G34: 계속비이월 | H34: 이용 | I34: 전용 | J34: 예비비 | K34: 계 | N34: 명시 | O34: 사고 | P34: 계속비 | Q34: 계
A35: 1.이사회비 | B35: 1. 이사회비 | C35: 1. 이사회운영비 | D35: 1,600,000 | E35: 0 | F35: 0 | G35: 0 | H35: 0 | I35: 0 | J35: 0 | K35: =SUM(E35:J35) -> 0 | L35: =SUM(D35) -> 1,600,000 | M35: 1,600,000 | N35: 0 | O35: 0 | P35: 0 | Q35: =SUM(N35:P35) -> 0 | R35: =L35-M35-Q35 -> 0
A36: 2. 사무비 | B36: 1. 인건비 | C36: 1. 봉급 | D36: 0 | E36: 0 | F36: 0 | G36: 0 | H36: 0 | I36: 0 | J36: 0 | K36: =SUM(E36:J36) -> 0 | L36: 0 | M36: 0 | N36: 0 | O36: 0 | P36: 0 | Q36: =SUM(N36:P36) -> 0 | R36: 0
C37: 2. 수당 | D37: 0 | E37: 0 | F37: 0 | G37: 0 | H37: 0 | I37: 0 | J37: 0 | K37: =SUM(E37:J37) -> 0 | L37: 0 | M37: 0 | N37: 0 | O37: 0 | P37: 0 | Q37: =SUM(N37:P37) -> 0 | R37: 0
C38: 3. 여비 | D38: 0 | E38: 0 | F38: 0 | G38: 0 | H38: 0 | I38: 0 | J38: 0 | K38: =SUM(E38:J38) -> 0 | L38: 0 | M38: 0 | N38: 0 | O38: 0 | P38: 0 | Q38: =SUM(N38:P38) -> 0 | R38: 0
B39: 2. 수용비 | C39: 1. 법인운영비 | D39: 5,056,000 | L39: =SUM(D39) -> 5,056,000 | M39: 4,605,230 | R39: 450,770
A40: 3.재산조성비 | B40: 1. 시설비 | C40: 1. 시설비 | D40: 0 | E40: 0 | F40: 0 | G40: 0 | H40: 0 | I40: 0 | J40: 0 | K40: =SUM(E40:J40) -> 0 | L40: 0 | M40: 0 | N40: 0 | O40: 0 | P40: 0 | Q40: =SUM(N40:P40) -> 0 | R40: 0
C41: 2. 적립금 | D41: 0 | E41: 0 | F41: 0 | G41: 0 | H41: 0 | I41: 0 | J41: 0 | K41: =SUM(E41:J41) -> 0 | L41: 0 | M41: 0 | N41: 0 | O41: 0 | P41: 0 | Q41: =SUM(N41:P41) -> 0 | R41: 0
B42: 2. 재산관리비 | C42: 1. 공과보험료 | D42: 38,000,000 | E42: 0 | F42: 0 | G42: 0 | H42: 0 | I42: 0 | J42: 0 | K42: =SUM(E42:J42) -> 0 | L42: 38,000,000 | M42: 37,959,130 | N42: 0 | O42: 0 | P42: 0 | Q42: =SUM(N42:P42) -> 0 | R42: 40,870
C43: 2. 재산유지비 | D43: 0 | L43: 0 | M43: 0 | R43: 0
A44: 4.전출금 | B44: 1. 전출금 | C44: 1. 고등학교 | D44: 103,994,000 | E44: 0 | F44: 0 | G44: 0 | H44: 0 | I44: 0 | J44: 0 | K44: =SUM(E44:J44) -> 0 | L44: 103,994,000 | M44: 89,376,040 | N44: 0 | O44: 0 | P44: 0 | Q44: =SUM(N44:P44) -> 0 | R44: 14,617,960
C45: 2. 중학교 | D45: 44,138,000 | L45: 44,138,000 | M45: 37,215,370 | R45: 6,922,630
C46: 3. 시설비 | D46: 0 | E46: 0 | F46: 0 | G46: 0 | H46: 0 | I46: 0 | J46: 0 | K46: =SUM(E46:J46) -> 0 | L46: 0 | M46: 0 | N46: 0 | O46: 0 | P46: 0 | Q46: =SUM(N46:P46) -> 0 | R46: 0
A47: 5. 잡지출 | B47: 1. 제지출 | C47: 1. 보상금 | D47: 0 | E47: 0 | F47: 0 | G47: 0 | H47: 0 | I47: 0 | J47: 0 | K47: =SUM(E47:J47) -> 0 | L47: 0 | M47: 0 | N47: 0 | O47: 0 | P47: 0 | Q47: =SUM(N47:P47) -> 0 | R47: 0
C48: 2.소송비 | D48: 0 | E48: 0 | F48: 0 | G48: 0 | H48: 0 | I48: 0 | J48: 0 | K48: =SUM(E48:J48) -> 0 | L48: 0 | M48: 0 | N48: 0 | O48: 0 | P48: 0 | Q48: =SUM(N48:P48) -> 0 | R48: 0
C49: 3. 기타제지출 | D49: 2,860,000 | E49: 0 | F49: 0 | G49: 0 | H49: 0 | I49: 0 | J49: 0 | K49: =SUM(E49:J49) -> 0 | L49: 2,860,000 | M49: 2,860,000 | N49: 0 | O49: 0 | P49: 0 | Q49: =SUM(N49:P49) -> 0 | R49: 0
A50: 6.예비비 | B50: 1.예비비 | C50: 1.예비비 | D50: 100,000,000 | E50: 0 | F50: 0 | G50: 0 | H50: 0 | I50: 0 | J50: 0 | K50: =SUM(E50:J50) -> 0 | L50: 100,000,000 | M50: 0 | N50: 0 | O50: 0 | P50: 0 | Q50: =SUM(N50:P50) -> 0 | R50: 100,000,000
A51: 세출합계 | D51: =SUM(D35:D50) -> 295,648,000 | E51: =SUM(E35:E49) -> 0 | F51: 0 | G51: 0 | H51: 0 | I51: 0 | J51: 0 | K51: 0 | L51: =D51+K51 -> 295,648,000 | M51: =SUM(M35:M49) -> 173,615,770 | N51: =SUM(N35:N49) -> 0 | O51: =SUM(O35:O49) -> 0 | P51: =SUM(P35:P49) -> 0 | Q51: =SUM(Q35:Q49) -> 0 | R51: 122,032,230
B52: * 작성요령 : | C52: 1. 과목은 관, 항까지 작성한다.
C53: 2. 예산외의 비목을 충당하기 위하여 예비비를 지출한 때에는 예산에 준한 과목에
C54: 이를 정리하고 해당 " 관"의 결산액에 합산한다.

Sheet 집행잔액조서
A1: 집 행 잔 액 조 서
A3: 1. 세입총액 : 일금 | C3: 295,648,986원
A5: 2. 세출총액 : 일금 | C5: 173,615,770원
A7: 3. 차인잔액 : 일금 | C7: =SUM(C3-C5) -> 122,033,216원 | I7: =C7=E19 -> FALSE
A9: ㅇ 잉여금 현황
H10: (단위 : 원)
A11: 세계잉여금(A) | B11: 이 월 액(B) | F11: 임대보증금미환급금 | G11: 적립금 (법인비) © | H11: 순세계잉여금 | I11: 비고
B12: 소계 | C12: 명시이월 | D12: 사고이월 | E12: 계속비이월
A13: =C7 -> 122,033,216 | B13: =SUM(C13:E13) -> 0 | C13: 0 | D13: 0 | E13: 0 | F13: 100,000,000 | H13: =A13-B13-F13 -> 22,033,216
A15: ㅇ 순세계잉여금 내역
H16: (단위 : 원)
A17: 항 목 | B17: 상세내역 | E17: 이월액 | G17: 이월사유 | H17: 비고
A18: 법인비 | B18: 집행잔액 | E18: =SUM(H13) -> 22,033,216 | G18: 집행잔액 | H18: 전출금 예정
A19: 합 계 | E19: =SUM(E18) -> 22,033,216

Sheet 수익용기본재산 수입실적 조서
A1: 【서식 45】
A2: 수익용기본재산 수입실적 조서
A4: 가. 토지(대지, 임야, 전, 답) 및 건물
A5: (단위 : 원)
A6: 재산의종류 | B6: 면적(㎥) | C6: 평가액 | D6: 총수입액 | E6: 필요경비 | F6: 순수익액 | G6: 운영방법
A7: 건물 | B7: 269.63 | C7: 4,533,160,790 | D7: 179,740,000 | E7: 35,613,430 | F7: =SUM(D7-E7) -> 144,126,570 | G7: 평가액은 건물과 토지합계
A8: 토지 | B8: 8,654 | C8: 891,871,100 | D8: 9,300,000 | E8: 2,323,180 | F8: =SUM(D8-E8) -> 6,976,820
A11: 나. 현금 및 유가증권
A12: 재산의종류 | B12: 금액 | C12: 이율 또는 배당금 | D12: 총수입액 | E12: 필요경비 | F12: 순수익액 | G12: 비고
A13: 예금 | B13: 100,000,000 | C13: =SUM(D13/B13) -> 0.55% | D13: 552,373 | E13: 85,060 | F13: =SUM(D13-E13) -> 467,313
A15: 나. 수입액 집행내역
A16: (단위 : 원)
A17: 재산의 | B17: 순수익액 | C17: 집 행 내 역 | J17: 계
A18: 종 류 | C18: 법 정 | D18: 법 인 | E18: 교육시설부담금 | F18: 제 세 | G18: 감 가 | H18: 학교 | I18: 재투자비
C19: 부담금 | D19: 운영비 | F19: 공과금 | G19: 삼각비 | H19: 운영비
A20: 건물 | B20: =SUM(F7) -> 144,126,570 | C20: 125,381,810 | D20: 7,465,230 | F20: 11,279,530 | J20: =SUM(C20:I20) -> 144,126,570
A21: 토지 | B21: =SUM(F8) -> 6,976,820 | F21: 6,976,820 | J21: =SUM(C21:I21) -> 6,976,820
A22: 현금 | B22: =SUM(F13) -> 467,313 | F22: 467,313 | J22: =SUM(C22:I22) -> 467,313
A23: 계 | B23: =SUM(B20:B22) -> 151,570,703 | C23: =SUM(C20:C22) -> 125,381,810 | D23: =SUM(D20:D22) -> 7,465,230 | E23: 0 | F23: 18,723,663 | G23: 0 | H23: 0 | I23: 0 | J23: =SUM(J20:J22) -> 151,570,703

Sheet 감사보고서
